[Event "Titled Tuesday Blitz May 16 Early 2023"]
[White "iHateNAJDORF"]
[Black "Gritsenko, Nikolai"]
[BlackFideId "14112493"]
[WhiteElo "2545"]
[BlackElo "2389"]
[Result "1/2-1/2"]
[Round "05"]
[TimeControl "180+2"]
[Date "2023.05.16"]
[WhiteClock "0:01:13"]
[BlackClock "0:00:38"]

1. e4 {[%clk 0:02:59]}  d5 {[%clk 0:02:59]} 2. exd5 {[%clk 0:02:58]}  Nf6 {[%clk 0:02:59]} 3. Bb5+ {[%clk 0:02:57]}  Bd7 {[%clk 0:02:59]} 4. Be2 {[%clk 0:02:56]}  Nxd5 {[%clk 0:02:58]} 5. d4 {[%clk 0:02:56]}  Bf5 {[%clk 0:02:58]} 6. Nf3 {[%clk 0:02:54]}  e6 {[%clk 0:02:58]} 7. O-O {[%clk 0:02:54]}  Be7 {[%clk 0:02:56]} 8. a3 {[%clk 0:02:51]}  O-O {[%clk 0:02:54]} 9. c4 {[%clk 0:02:52]}  Nb6 {[%clk 0:02:54]} 10. Nc3 {[%clk 0:02:52]}  a5 {[%clk 0:02:55]} 11. Bf4 {[%clk 0:02:42]}  Bf6 {[%clk 0:02:44]} 12. Qd2 {[%clk 0:02:37]}  Nc6 {[%clk 0:02:37]} 13. Rad1 {[%clk 0:02:36]}  a4 {[%clk 0:02:36]} 14. d5 {[%clk 0:02:14]}  Na5 {[%clk 0:02:19]} 15. dxe6 {[%clk 0:02:10]}  Bxe6 {[%clk 0:02:09]} 16. Qxd8 {[%clk 0:02:00]}  Raxd8 {[%clk 0:01:49]} 17. Bxc7 {[%clk 0:01:47]}  Rxd1 {[%clk 0:01:47]} 18. Rxd1 {[%clk 0:01:47]}  Naxc4 {[%clk 0:01:43]} 19. Bxc4 {[%clk 0:01:41]}  Nxc4 {[%clk 0:01:42]} 20. Nxa4 {[%clk 0:01:41]}  Nxb2 {[%clk 0:01:32]} 21. Nxb2 {[%clk 0:01:30]}  Bxb2 {[%clk 0:01:32]} 22. Rb1 {[%clk 0:01:30]}  Bxa3 {[%clk 0:01:21]} 23. Rxb7 {[%clk 0:01:30]}  Rc8 {[%clk 0:01:07]} 24. Rb8 {[%clk 0:01:28]}  Rxb8 {[%clk 0:01:07]} 25. Bxb8 {[%clk 0:01:28]}  Bb2 {[%clk 0:01:05]} 26. Be5 {[%clk 0:01:27]}  Ba3 {[%clk 0:00:59]} 27. Bf4 {[%clk 0:01:21]}  f6 {[%clk 0:00:58]} 28. Be3 {[%clk 0:01:19]}  Kf7 {[%clk 0:00:56]} 29. Nd4 {[%clk 0:01:19]}  Bd7 {[%clk 0:00:55]} 30. f3 {[%clk 0:01:19]}  Ke7 {[%clk 0:00:48]} 31. Kf2 {[%clk 0:01:19]}  Kd6 {[%clk 0:00:47]} 32. Nc2 {[%clk 0:01:14]}  Bb2 {[%clk 0:00:41]} 33. Bd4 {[%clk 0:01:13]}  Bc1 {[%clk 0:00:39]} 34. Be3 {[%clk 0:01:12]}  Bb2 {[%clk 0:00:39]} 35. Bd4 {[%clk 0:01:13]}  Bc1 {[%clk 0:00:38]} 36. Be3 {[%clk 0:01:13]}  Bb2 {[%clk 0:00:38]} 1/2-1/2


[Site "https://www.chess.com"]

[Event "Titled Tuesday Blitz May 16 Early 2023"]
[White "Mathieu, Phileas"]
[Black "Wagner, Dennis"]
[WhiteFideId "36048410"]
[BlackFideId "24650684"]
[WhiteElo "2241"]
[BlackElo "2478"]
[Result "1/2-1/2"]
[Round "05"]
[TimeControl "180+2"]
[Date "2023.05.16"]
[WhiteClock "0:00:51"]
[BlackClock "0:00:14"]

1. e4 {[%clk 0:02:59]}  e5 {[%clk 0:02:55]} 2. Nf3 {[%clk 0:02:55]}  Nc6 {[%clk 0:02:55]} 3. Bb5 {[%clk 0:02:55]}  a6 {[%clk 0:02:55]} 4. Ba4 {[%clk 0:02:55]}  Nf6 {[%clk 0:02:56]} 5. O-O {[%clk 0:02:53]}  Nxe4 {[%clk 0:02:55]} 6. Re1 {[%clk 0:02:53]}  Nc5 {[%clk 0:02:53]} 7. Bxc6 {[%clk 0:02:51]}  dxc6 {[%clk 0:02:52]} 8. d4 {[%clk 0:02:51]}  Ne6 {[%clk 0:02:50]} 9. dxe5 {[%clk 0:02:51]}  Qxd1 {[%clk 0:02:49]} 10. Rxd1 {[%clk 0:02:52]}  Be7 {[%clk 0:02:45]} 11. Nc3 {[%clk 0:02:52]}  Bd7 {[%clk 0:02:39]} 12. Be3 {[%clk 0:02:50]}  O-O-O {[%clk 0:02:39]} 13. Ne4 {[%clk 0:02:50]}  b6 {[%clk 0:02:36]} 14. c4 {[%clk 0:02:50]}  f5 {[%clk 0:02:24]} 15. exf6 {[%clk 0:02:47]}  gxf6 {[%clk 0:02:23]} 16. Ng3 {[%clk 0:02:47]}  Ng5 {[%clk 0:02:06]} 17. Nd4 {[%clk 0:02:31]}  h5 {[%clk 0:01:46]} 18. h4 {[%clk 0:02:27]}  Nf7 {[%clk 0:01:33]} 19. Ndf5 {[%clk 0:02:22]}  Bf8 {[%clk 0:01:08]} 20. Bd4 {[%clk 0:02:15]}  Ne5 {[%clk 0:01:07]} 21. Ne3 {[%clk 0:02:09]}  Be6 {[%clk 0:00:53]} 22. b3 {[%clk 0:02:06]}  Ba3 {[%clk 0:00:45]} 23. Ne4 {[%clk 0:02:03]}  Be7 {[%clk 0:00:43]} 24. Bb2 {[%clk 0:01:21]}  Rxd1+ {[%clk 0:00:41]} 25. Rxd1 {[%clk 0:01:22]}  a5 {[%clk 0:00:31]} 26. f4 {[%clk 0:01:16]}  Ng4 {[%clk 0:00:26]} 27. Nxg4 {[%clk 0:01:13]}  Bxg4 {[%clk 0:00:27]} 28. Re1 {[%clk 0:01:00]}  Rf8 {[%clk 0:00:20]} 29. Bd4 {[%clk 0:00:49]}  c5 {[%clk 0:00:17]} 30. Bc3 {[%clk 0:00:48]}  Kd7 {[%clk 0:00:14]} 31. Kf2 {[%clk 0:00:48]}  Bf5 {[%clk 0:00:09]} 32. Rd1+ {[%clk 0:00:45]}  Ke6 {[%clk 0:00:08]} 33. Re1 {[%clk 0:00:44]}  Bxe4 {[%clk 0:00:07]} 34. Rxe4+ {[%clk 0:00:45]}  Kd7 {[%clk 0:00:07]} 35. g3 {[%clk 0:00:44]}  f5 {[%clk 0:00:06]} 36. Re2 {[%clk 0:00:43]}  Bd6 {[%clk 0:00:07]} 37. Kf3 {[%clk 0:00:43]}  Rg8 {[%clk 0:00:06]} 38. Be5 {[%clk 0:00:42]}  a4 {[%clk 0:00:06]} 39. Bxd6 {[%clk 0:00:40]}  cxd6 {[%clk 0:00:07]} 40. Rd2 {[%clk 0:00:41]}  axb3 {[%clk 0:00:06]} 41. axb3 {[%clk 0:00:41]}  Ra8 {[%clk 0:00:07]} 42. Rd5 {[%clk 0:00:41]}  Ke6 {[%clk 0:00:07]} 43. Rd3 {[%clk 0:00:41]}  Ra2 {[%clk 0:00:07]} 44. Re3+ {[%clk 0:00:42]}  Kd7 {[%clk 0:00:08]} 45. Rd3 {[%clk 0:00:42]}  Rb2 {[%clk 0:00:08]} 46. Re3 {[%clk 0:00:42]}  Rc2 {[%clk 0:00:06]} 47. Rd3 {[%clk 0:00:42]}  Ke6 {[%clk 0:00:05]} 48. Ke3 {[%clk 0:00:42]}  Rb2 {[%clk 0:00:03]} 49. Kf3 {[%clk 0:00:42]}  Kd7 {[%clk 0:00:04]} 50. Ke3 {[%clk 0:00:41]}  Kc6 {[%clk 0:00:04]} 51. Kf3 {[%clk 0:00:40]}  Rc2 {[%clk 0:00:04]} 52. Ke3 {[%clk 0:00:39]}  Ra2 {[%clk 0:00:04]} 53. Kf3 {[%clk 0:00:39]}  Ra8 {[%clk 0:00:04]} 54. Rd5 {[%clk 0:00:39]}  Rf8 {[%clk 0:00:04]} 55. Ke3 {[%clk 0:00:35]}  b5 {[%clk 0:00:04]} 56. Kd3 {[%clk 0:00:34]}  b4 {[%clk 0:00:04]} 57. Ke3 {[%clk 0:00:33]}  Kd7 {[%clk 0:00:04]} 58. Kf3 {[%clk 0:00:33]}  Ke6 {[%clk 0:00:05]} 59. Rd3 {[%clk 0:00:34]}  Ra8 {[%clk 0:00:05]} 60. Re3+ {[%clk 0:00:34]}  Kd7 {[%clk 0:00:06]} 61. Rd3 {[%clk 0:00:35]}  Ra2 {[%clk 0:00:06]} 62. Ke3 {[%clk 0:00:35]}  Rc2 {[%clk 0:00:06]} 63. Kf3 {[%clk 0:00:36]}  Ke6 {[%clk 0:00:06]} 64. Re3+ {[%clk 0:00:36]}  Kf6 {[%clk 0:00:06]} 65. Rd3 {[%clk 0:00:37]}  Ke7 {[%clk 0:00:05]} 66. Re3+ {[%clk 0:00:37]}  Kd7 {[%clk 0:00:06]} 67. Re2 {[%clk 0:00:38]}  Rc3+ {[%clk 0:00:05]} 68. Re3 {[%clk 0:00:38]}  Rc1 {[%clk 0:00:03]} 69. Rd3 {[%clk 0:00:38]}  Rb1 {[%clk 0:00:04]} 70. Re3 {[%clk 0:00:38]}  Rd1 {[%clk 0:00:03]} 71. Ke2 {[%clk 0:00:38]}  Rd4 {[%clk 0:00:04]} 72. Rd3 {[%clk 0:00:37]}  Rxd3 {[%clk 0:00:03]} 73. Kxd3 {[%clk 0:00:37]}  Kc6 {[%clk 0:00:04]} 74. Ke3 {[%clk 0:00:35]}  d5 {[%clk 0:00:04]} 75. Kd3 {[%clk 0:00:36]}  d4 {[%clk 0:00:04]} 76. Kd2 {[%clk 0:00:36]}  Kd6 {[%clk 0:00:04]} 77. Kd3 {[%clk 0:00:36]}  Kd7 {[%clk 0:00:04]} 78. Kd2 {[%clk 0:00:37]}  Kd8 {[%clk 0:00:04]} 79. Kd3 {[%clk 0:00:38]}  Ke7 {[%clk 0:00:05]} 80. Kd2 {[%clk 0:00:39]}  Kf6 {[%clk 0:00:05]} 81. Kd3 {[%clk 0:00:40]}  Kg6 {[%clk 0:00:06]} 82. Ke2 {[%clk 0:00:41]}  Kg7 {[%clk 0:00:07]} 83. Kd3 {[%clk 0:00:42]}  Kf7 {[%clk 0:00:08]} 84. Kd2 {[%clk 0:00:43]}  Ke7 {[%clk 0:00:08]} 85. Ke2 {[%clk 0:00:44]}  Kd6 {[%clk 0:00:09]} 86. Kf3 {[%clk 0:00:45]}  Kc6 {[%clk 0:00:10]} 87. Ke2 {[%clk 0:00:45]}  Kd6 {[%clk 0:00:10]} 88. Kd3 {[%clk 0:00:46]}  Ke6 {[%clk 0:00:10]} 89. Kd2 {[%clk 0:00:47]}  Kd6 {[%clk 0:00:11]} 90. Kc2 {[%clk 0:00:48]}  Ke6 {[%clk 0:00:12]} 91. Kd3 {[%clk 0:00:49]}  Kd6 {[%clk 0:00:12]} 92. Kd2 {[%clk 0:00:50]}  Ke6 {[%clk 0:00:13]} 93. Ke2 {[%clk 0:00:51]}  Kd6 {[%clk 0:00:14]} 1/2-1/2


[Site "https://www.chess.com"]

[Event "Titled Tuesday Blitz May 16 Early 2023"]
[White "Garrido, Denis"]
[Black "Nitish Belurkar"]
[WhiteFideId "601217"]
[BlackFideId "5084768"]
[WhiteElo "2294"]
[BlackElo "2352"]
[Result "0-1"]
[Round "05"]
[TimeControl "180+2"]
[Date "2023.05.16"]
[WhiteClock "0:01:34"]
[BlackClock "0:02:25"]

1. e4 {[%clk 0:03:00]}  d5 {[%clk 0:02:57]} 2. exd5 {[%clk 0:03:00]}  Nf6 {[%clk 0:02:58]} 3. Nf3 {[%clk 0:02:59]}  Nxd5 {[%clk 0:02:55]} 4. d4 {[%clk 0:02:59]}  Bf5 {[%clk 0:02:55]} 5. a3 {[%clk 0:02:53]}  e6 {[%clk 0:02:54]} 6. c4 {[%clk 0:02:53]}  Nf6 {[%clk 0:02:55]} 7. Nc3 {[%clk 0:02:53]}  c5 {[%clk 0:02:54]} 8. Be3 {[%clk 0:02:52]}  Nbd7 {[%clk 0:02:52]} 9. Be2 {[%clk 0:02:45]}  Be7 {[%clk 0:02:51]} 10. O-O {[%clk 0:02:45]}  O-O {[%clk 0:02:49]} 11. h3 {[%clk 0:02:43]}  h6 {[%clk 0:02:48]} 12. Re1 {[%clk 0:02:43]}  Rc8 {[%clk 0:02:45]} 13. d5 {[%clk 0:02:39]}  exd5 {[%clk 0:02:45]} 14. cxd5 {[%clk 0:02:38]}  Bd6 {[%clk 0:02:42]} 15. Bc4 {[%clk 0:02:13]}  a6 {[%clk 0:02:39]} 16. a4 {[%clk 0:02:10]}  Re8 {[%clk 0:02:37]} 17. Qd2 {[%clk 0:02:09]}  Qc7 {[%clk 0:02:33]} 18. Rad1 {[%clk 0:02:07]}  Rcd8 {[%clk 0:02:32]} 19. g4 {[%clk 0:01:52]}  Bh7 {[%clk 0:02:29]} 20. Kg2 {[%clk 0:01:52]}  Ne4 {[%clk 0:02:27]} 21. Nxe4 {[%clk 0:01:52]}  Bxe4 {[%clk 0:02:28]} 22. a5 {[%clk 0:01:33]}  Bxf3+ {[%clk 0:02:26]} 23. Kxf3 {[%clk 0:01:32]}  Ne5+ {[%clk 0:02:27]} 24. Kg2 {[%clk 0:01:33]}  Nxc4 {[%clk 0:02:27]} 25. Qc3 {[%clk 0:01:33]}  Nxe3+ {[%clk 0:02:25]} 26. Rxe3 {[%clk 0:01:34]} 0-1


[Site "https://www.chess.com"]

[Event "Titled Tuesday Blitz May 16 Early 2023"]
[White "Lesbekova, Assel"]
[Black "Grigoriants, Sergey"]
[WhiteFideId "13713248"]
[BlackFideId "4130804"]
[WhiteElo "1805"]
[BlackElo "2502"]
[Result "0-1"]
[Round "05"]
[TimeControl "180+2"]
[Date "2023.05.16"]
[WhiteClock "0:00:06"]
[BlackClock "0:00:32"]

1. e4 {[%clk 0:03:00]}  c5 {[%clk 0:02:56]} 2. Nf3 {[%clk 0:02:59]}  e6 {[%clk 0:02:56]} 3. d4 {[%clk 0:02:59]}  cxd4 {[%clk 0:02:55]} 4. Nxd4 {[%clk 0:03:00]}  Nf6 {[%clk 0:02:55]} 5. Bd3 {[%clk 0:02:56]}  Nc6 {[%clk 0:02:35]} 6. Nxc6 {[%clk 0:02:48]}  bxc6 {[%clk 0:02:35]} 7. O-O {[%clk 0:02:48]}  d5 {[%clk 0:02:36]} 8. exd5 {[%clk 0:02:47]}  cxd5 {[%clk 0:02:35]} 9. c4 {[%clk 0:02:42]}  Bd6 {[%clk 0:02:30]} 10. Nc3 {[%clk 0:02:34]}  dxc4 {[%clk 0:02:21]} 11. Qa4+ {[%clk 0:02:27]}  Qd7 {[%clk 0:01:48]} 12. Qxd7+ {[%clk 0:02:04]}  Bxd7 {[%clk 0:01:46]} 13. Bxc4 {[%clk 0:02:05]}  Ke7 {[%clk 0:01:41]} 14. Bb5 {[%clk 0:02:00]}  Rhc8 {[%clk 0:01:30]} 15. Bxd7 {[%clk 0:01:58]}  Nxd7 {[%clk 0:01:29]} 16. Bd2 {[%clk 0:01:48]}  Rab8 {[%clk 0:01:12]} 17. b3 {[%clk 0:01:45]}  Nf6 {[%clk 0:01:03]} 18. Rac1 {[%clk 0:01:41]}  Ba3 {[%clk 0:01:02]} 19. Rcd1 {[%clk 0:01:34]}  Rb7 {[%clk 0:00:59]} 20. Na4 {[%clk 0:01:10]}  Nd5 {[%clk 0:00:54]} 21. Bc1 {[%clk 0:01:03]}  Bxc1 {[%clk 0:00:46]} 22. Rxc1 {[%clk 0:01:04]}  Rbc7 {[%clk 0:00:47]} 23. Rxc7+ {[%clk 0:01:00]}  Rxc7 {[%clk 0:00:48]} 24. g3 {[%clk 0:00:52]}  Rc2 {[%clk 0:00:46]} 25. Ra1 {[%clk 0:00:46]}  g5 {[%clk 0:00:45]} 26. h3 {[%clk 0:00:42]}  h5 {[%clk 0:00:45]} 27. a3 {[%clk 0:00:36]}  a5 {[%clk 0:00:42]} 28. Kf1 {[%clk 0:00:25]}  h4 {[%clk 0:00:41]} 29. gxh4 {[%clk 0:00:20]}  gxh4 {[%clk 0:00:42]} 30. b4 {[%clk 0:00:19]}  axb4 {[%clk 0:00:39]} 31. axb4 {[%clk 0:00:19]}  Nxb4 {[%clk 0:00:40]} 32. Rb1 {[%clk 0:00:16]}  Nd3 {[%clk 0:00:39]} 33. Rb3 {[%clk 0:00:14]}  Rxf2+ {[%clk 0:00:35]} 34. Kg1 {[%clk 0:00:13]}  Rf3 {[%clk 0:00:33]} 35. Kg2 {[%clk 0:00:06]}  Ne1+ {[%clk 0:00:32]} 0-1


[Site "https://www.chess.com"]

[Event "Titled Tuesday Blitz May 16 Early 2023"]
[White "Czerw, Dawid"]
[Black "caropawn10"]
[WhiteFideId "1145746"]
[WhiteElo "2144"]
[BlackElo "2703"]
[Result "1-0"]
[Round "05"]
[TimeControl "180+2"]
[Date "2023.05.16"]
[WhiteClock "0:00:03"]
[BlackClock "0:00:01"]

1. e4 {[%clk 0:03:00]}  c6 {[%clk 0:02:53]} 2. Nc3 {[%clk 0:02:58]}  d5 {[%clk 0:02:53]} 3. Qf3 {[%clk 0:02:58]}  dxe4 {[%clk 0:02:52]} 4. Nxe4 {[%clk 0:02:58]}  Nf6 {[%clk 0:02:52]} 5. Bc4 {[%clk 0:02:56]}  Nbd7 {[%clk 0:02:46]} 6. d4 {[%clk 0:02:53]}  e6 {[%clk 0:02:44]} 7. Ne2 {[%clk 0:02:52]}  Be7 {[%clk 0:02:44]} 8. Bd2 {[%clk 0:02:44]}  O-O {[%clk 0:02:44]} 9. O-O-O {[%clk 0:02:43]}  a5 {[%clk 0:02:41]} 10. g4 {[%clk 0:02:39]}  Nxe4 {[%clk 0:02:33]} 11. Qxe4 {[%clk 0:02:38]}  Nf6 {[%clk 0:02:33]} 12. Qf3 {[%clk 0:02:34]}  b5 {[%clk 0:02:27]} 13. Bd3 {[%clk 0:02:25]}  Qd5 {[%clk 0:02:26]} 14. Qh3 {[%clk 0:02:06]}  Qxa2 {[%clk 0:02:13]} 15. Nc3 {[%clk 0:02:01]}  Qa1+ {[%clk 0:02:10]} 16. Nb1 {[%clk 0:02:01]}  a4 {[%clk 0:02:06]} 17. g5 {[%clk 0:01:19]}  a3 {[%clk 0:02:04]} 18. Bc3 {[%clk 0:01:18]}  e5 {[%clk 0:01:00]} 19. Qh4 {[%clk 0:01:10]}  a2 {[%clk 0:00:53]} 20. gxf6 {[%clk 0:01:02]}  g6 {[%clk 0:00:43]} 21. fxe7 {[%clk 0:00:50]}  Re8 {[%clk 0:00:14]} 22. Kd2 {[%clk 0:00:42]}  b4 {[%clk 0:00:14]} 23. Bxb4 {[%clk 0:00:20]}  Qxb2 {[%clk 0:00:15]} 24. Bc3 {[%clk 0:00:19]}  a1=Q {[%clk 0:00:15]} 25. Bxb2 {[%clk 0:00:19]}  Qxb2 {[%clk 0:00:16]} 26. dxe5 {[%clk 0:00:17]}  Be6 {[%clk 0:00:16]} 27. Nc3 {[%clk 0:00:16]}  c5 {[%clk 0:00:17]} 28. Ne4 {[%clk 0:00:15]}  Qxe5 {[%clk 0:00:08]} 29. Nf6+ {[%clk 0:00:15]}  Kg7 {[%clk 0:00:08]} 30. Nxe8+ {[%clk 0:00:14]}  Rxe8 {[%clk 0:00:08]} 31. Rhe1 {[%clk 0:00:13]}  Qd6 {[%clk 0:00:07]} 32. Ke2 {[%clk 0:00:10]}  Qe5+ {[%clk 0:00:02]} 33. Kf1 {[%clk 0:00:09]}  Qd5 {[%clk 0:00:03]} 34. Be4 {[%clk 0:00:08]}  Qc4+ {[%clk 0:00:03]} 35. Kg1 {[%clk 0:00:08]}  Rxe7 {[%clk 0:00:04]} 36. Qf4 {[%clk 0:00:06]}  Qc3 {[%clk 0:00:03]} 37. Qe3 {[%clk 0:00:05]}  Qf6 {[%clk 0:00:03]} 38. Qf3 {[%clk 0:00:05]}  Qxf3 {[%clk 0:00:03]} 39. Bxf3 {[%clk 0:00:05]}  Kf6 {[%clk 0:00:04]} 40. Rd6 {[%clk 0:00:04]}  Rc7 {[%clk 0:00:04]} 41. Bd5 {[%clk 0:00:03]}  c4 {[%clk 0:00:05]} 42. Bxe6 {[%clk 0:00:03]}  fxe6 {[%clk 0:00:06]} 43. Rdxe6+ {[%clk 0:00:04]}  Kf5 {[%clk 0:00:07]} 44. R6e5+ {[%clk 0:00:04]}  Kf4 {[%clk 0:00:01]} 45. Kg2 {[%clk 0:00:03]} 1-0


[Site "https://www.chess.com"]

[Event "Titled Tuesday Blitz May 16 Early 2023"]
[White "Piesik, Piotr"]
[Black "Salinas Herrera, Pablo"]
[WhiteFideId "1136194"]
[BlackFideId "3407128"]
[WhiteElo "2299"]
[BlackElo "2546"]
[Result "0-1"]
[Round "05"]
[TimeControl "180+2"]
[Date "2023.05.16"]
[WhiteClock "0:00:29"]
[BlackClock "0:00:23"]

1. Nf3 {[%clk 0:02:56]}  d5 {[%clk 0:02:59]} 2. g3 {[%clk 0:02:56]}  Nf6 {[%clk 0:03:00]} 3. Bg2 {[%clk 0:02:56]}  e6 {[%clk 0:03:00]} 4. O-O {[%clk 0:02:57]}  Bd6 {[%clk 0:03:00]} 5. d3 {[%clk 0:02:57]}  O-O {[%clk 0:02:59]} 6. Nbd2 {[%clk 0:02:58]}  c6 {[%clk 0:02:58]} 7. e4 {[%clk 0:02:58]}  e5 {[%clk 0:02:59]} 8. Qe2 {[%clk 0:02:57]}  Re8 {[%clk 0:02:59]} 9. a4 {[%clk 0:02:56]}  a5 {[%clk 0:02:59]} 10. Nb3 {[%clk 0:02:56]}  Nbd7 {[%clk 0:02:57]} 11. Bd2 {[%clk 0:02:55]}  h6 {[%clk 0:02:56]} 12. Bc3 {[%clk 0:02:54]}  Qc7 {[%clk 0:02:51]} 13. Nh4 {[%clk 0:02:53]}  b6 {[%clk 0:02:37]} 14. Nf5 {[%clk 0:02:52]}  Bf8 {[%clk 0:02:38]} 15. Rfe1 {[%clk 0:02:42]}  Ba6 {[%clk 0:02:29]} 16. Qf3 {[%clk 0:02:42]}  d4 {[%clk 0:02:12]} 17. Bd2 {[%clk 0:02:41]}  c5 {[%clk 0:02:13]} 18. Bf1 {[%clk 0:02:39]}  c4 {[%clk 0:02:13]} 19. dxc4 {[%clk 0:02:38]}  Bxc4 {[%clk 0:02:13]} 20. Bd3 {[%clk 0:02:26]}  Rac8 {[%clk 0:02:10]} 21. Rec1 {[%clk 0:02:19]}  Qc6 {[%clk 0:02:04]} 22. Bxc4 {[%clk 0:02:10]}  Qxc4 {[%clk 0:02:03]} 23. Qd3 {[%clk 0:02:11]}  Qc6 {[%clk 0:01:55]} 24. f3 {[%clk 0:02:11]}  Qe6 {[%clk 0:01:48]} 25. Be1 {[%clk 0:02:06]}  Rc6 {[%clk 0:01:44]} 26. Nd2 {[%clk 0:02:05]}  Rec8 {[%clk 0:01:43]} 27. Kg2 {[%clk 0:01:45]}  g6 {[%clk 0:01:26]} 28. Nh4 {[%clk 0:01:45]}  Bb4 {[%clk 0:01:25]} 29. Kg1 {[%clk 0:01:23]}  R8c7 {[%clk 0:00:33]} 30. Ng2 {[%clk 0:01:22]}  Nb8 {[%clk 0:00:29]} 31. Nb3 {[%clk 0:01:18]}  Bxe1 {[%clk 0:00:28]} 32. Nxe1 {[%clk 0:01:17]}  Nbd7 {[%clk 0:00:28]} 33. Qd2 {[%clk 0:01:12]}  Kg7 {[%clk 0:00:28]} 34. Nd3 {[%clk 0:01:09]}  h5 {[%clk 0:00:27]} 35. Ne1 {[%clk 0:01:01]}  Rc4 {[%clk 0:00:27]} 36. Qg5 {[%clk 0:00:59]}  Nh7 {[%clk 0:00:27]} 37. Qd2 {[%clk 0:00:57]}  Rb4 {[%clk 0:00:26]} 38. Nd3 {[%clk 0:00:54]}  Rbc4 {[%clk 0:00:26]} 39. Qd1 {[%clk 0:00:52]}  Ndf6 {[%clk 0:00:23]} 40. Nd2 {[%clk 0:00:52]}  R4c6 {[%clk 0:00:24]} 41. b3 {[%clk 0:00:52]}  Rc3 {[%clk 0:00:24]} 42. Nc4 {[%clk 0:00:52]}  Nd7 {[%clk 0:00:23]} 43. h4 {[%clk 0:00:46]}  Qf6 {[%clk 0:00:21]} 44. Kg2 {[%clk 0:00:45]}  Nhf8 {[%clk 0:00:22]} 45. Qd2 {[%clk 0:00:45]}  Ne6 {[%clk 0:00:23]} 46. Rh1 {[%clk 0:00:42]}  Nec5 {[%clk 0:00:23]} 47. Nxc5 {[%clk 0:00:40]}  Nxc5 {[%clk 0:00:24]} 48. Ra2 {[%clk 0:00:29]}  Qxf3+ {[%clk 0:00:23]} 0-1


[Site "https://www.chess.com"]

[Event "Titled Tuesday Blitz May 16 Early 2023"]
[White "Harsh Suresh"]
[Black "Jaskolka, Tomasz"]
[WhiteFideId "45018464"]
[BlackFideId "1170791"]
[WhiteElo "2209"]
[BlackElo "2155"]
[Result "1-0"]
[Round "05"]
[TimeControl "180+2"]
[Date "2023.05.16"]
[WhiteClock "0:00:52"]
[BlackClock "0:00:09"]

1. e4 {[%clk 0:03:00]}  d5 {[%clk 0:03:00]} 2. exd5 {[%clk 0:02:59]}  Nf6 {[%clk 0:03:01]} 3. Be2 {[%clk 0:02:54]}  Nxd5 {[%clk 0:02:56]} 4. d4 {[%clk 0:02:54]}  c6 {[%clk 0:02:48]} 5. Nf3 {[%clk 0:02:50]}  Bf5 {[%clk 0:02:48]} 6. O-O {[%clk 0:02:49]}  e6 {[%clk 0:02:47]} 7. c4 {[%clk 0:02:48]}  Nf6 {[%clk 0:02:47]} 8. Nc3 {[%clk 0:02:48]}  Be7 {[%clk 0:02:47]} 9. h3 {[%clk 0:02:48]}  Nbd7 {[%clk 0:02:46]} 10. Bf4 {[%clk 0:02:48]}  O-O {[%clk 0:02:46]} 11. Qb3 {[%clk 0:02:47]}  Qb6 {[%clk 0:02:45]} 12. Rfc1 {[%clk 0:02:44]}  Qxb3 {[%clk 0:02:28]} 13. axb3 {[%clk 0:02:45]}  a6 {[%clk 0:02:27]} 14. Ne5 {[%clk 0:02:39]}  Nxe5 {[%clk 0:02:27]} 15. Bxe5 {[%clk 0:02:39]}  Rfd8 {[%clk 0:02:19]} 16. g4 {[%clk 0:02:37]}  Bg6 {[%clk 0:02:18]} 17. Bf3 {[%clk 0:02:34]}  h5 {[%clk 0:02:07]} 18. Kg2 {[%clk 0:02:33]}  hxg4 {[%clk 0:01:44]} 19. hxg4 {[%clk 0:02:33]}  Nd7 {[%clk 0:01:45]} 20. Bc7 {[%clk 0:02:33]}  Rdc8 {[%clk 0:01:45]} 21. Bg3 {[%clk 0:02:33]}  Bf6 {[%clk 0:01:43]} 22. d5 {[%clk 0:02:27]}  exd5 {[%clk 0:01:38]} 23. cxd5 {[%clk 0:02:27]}  Ne5 {[%clk 0:01:25]} 24. Bxe5 {[%clk 0:02:15]}  Bxe5 {[%clk 0:01:25]} 25. dxc6 {[%clk 0:02:15]}  bxc6 {[%clk 0:01:25]} 26. Ra5 {[%clk 0:02:15]}  Bf4 {[%clk 0:01:21]} 27. Rca1 {[%clk 0:02:15]}  Bd3 {[%clk 0:01:18]} 28. R1a4 {[%clk 0:01:56]}  Bc1 {[%clk 0:01:07]} 29. Rd4 {[%clk 0:01:51]}  Bb5 {[%clk 0:00:54]} 30. Nxb5 {[%clk 0:01:43]}  axb5 {[%clk 0:00:51]} 31. Rxa8 {[%clk 0:01:44]}  Rxa8 {[%clk 0:00:52]} 32. Bxc6 {[%clk 0:01:45]}  Bxb2 {[%clk 0:00:45]} 33. Rd2 {[%clk 0:01:36]}  Rc8 {[%clk 0:00:44]} 34. Bxb5 {[%clk 0:01:34]}  Bc3 {[%clk 0:00:43]} 35. Rd7 {[%clk 0:01:34]}  Be5 {[%clk 0:00:27]} 36. Bc4 {[%clk 0:01:32]}  Rf8 {[%clk 0:00:24]} 37. g5 {[%clk 0:01:27]}  g6 {[%clk 0:00:23]} 38. Kf3 {[%clk 0:01:26]}  Kg7 {[%clk 0:00:24]} 39. b4 {[%clk 0:01:12]}  Bc3 {[%clk 0:00:23]} 40. b5 {[%clk 0:01:11]}  Ba5 {[%clk 0:00:23]} 41. Kg4 {[%clk 0:01:05]}  Bb6 {[%clk 0:00:22]} 42. f4 {[%clk 0:01:05]}  Bg1 {[%clk 0:00:22]} 43. Bd5 {[%clk 0:01:04]}  Bf2 {[%clk 0:00:21]} 44. Kf3 {[%clk 0:01:04]}  Bg1 {[%clk 0:00:21]} 45. Ke2 {[%clk 0:01:03]}  Re8+ {[%clk 0:00:20]} 46. Kf1 {[%clk 0:01:02]}  Be3 {[%clk 0:00:19]} 47. Rxf7+ {[%clk 0:01:02]}  Kh8 {[%clk 0:00:20]} 48. Rf6 {[%clk 0:00:56]}  Kg7 {[%clk 0:00:20]} 49. b6 {[%clk 0:00:56]}  Rb8 {[%clk 0:00:19]} 50. b7 {[%clk 0:00:56]}  Ba7 {[%clk 0:00:19]} 51. Rf7+ {[%clk 0:00:56]}  Kh8 {[%clk 0:00:20]} 52. Rc7 {[%clk 0:00:54]}  Be3 {[%clk 0:00:06]} 53. Rc8+ {[%clk 0:00:54]}  Kh7 {[%clk 0:00:06]} 54. Rxb8 {[%clk 0:00:54]}  Bxf4 {[%clk 0:00:07]} 55. Rf8 {[%clk 0:00:54]}  Bxg5 {[%clk 0:00:07]} 56. b8=Q {[%clk 0:00:54]}  Be7 {[%clk 0:00:08]} 57. Rf7+ {[%clk 0:00:53]}  Kh6 {[%clk 0:00:08]} 58. Rxe7 {[%clk 0:00:53]}  g5 {[%clk 0:00:08]} 59. Qd6+ {[%clk 0:00:53]}  Kh5 {[%clk 0:00:09]} 60. Bf3+ {[%clk 0:00:52]}  Kh4 {[%clk 0:00:09]} 61. Rh7# {[%clk 0:00:52]} 1-0


[Site "https://www.chess.com"]